bitfinex/quotes_SOLUSD_20250416
["timestamp","ask_amount","ask_price","bid_price","bid_amount"]
[1744826568147,26.0,126.16,126.12,44.56737127]
[1744826568348,7.92518624,126.18,126.14,44.56737127]
[1744826568667,44.56737127,126.2,126.11,26.14216157]
[1744826568850,7.92335588,126.21,126.08,7.93126138]
[1744826569049,44.56737127,126.17,126.12,44.56737127]
[1744826569250,44.70953284,126.16,126.11,44.56737127]
[1744826569456,44.56737127,126.15,126.1,44.56737127]
[1744826569651,26.14216157,126.16,126.09,44.56737127]
[1744826569652,44.56737127,126.14,126.09,44.56737127]
[1744826569857,44.56737127,126.15,126.1,44.56737127]
[1744826570063,18.79181043,126.17,126.12,44.56737127]
[1744826570263,18.79181043,126.17,126.1,44.56737127]
[1744826570264,52.49444221,126.15,126.1,44.56737127]
[1744826570477,52.49444221,126.15,126.09,44.56737127]
[1744826570478,44.56737127,126.14,126.09,44.56737127]
[1744826570646,44.56737127,126.14,126.07,33.93202472]
[1744826570853,27.7447483,126.15,126.09,44.56737127]
[1744826571052,44.56737127,126.14,126.09,44.56737127]
[1744826571254,44.56737127,126.11,126.06,44.56737127]
[1744826571475,44.56737127,126.12,126.07,44.56737127]
[1744826571678,53.7447483,126.15,126.1,44.56737127]
[1744826571882,7.92581437,126.17,126.14,44.56737127]
[1744826572182,7.92581437,126.17,126.06,89.50134327]
[1744826572183,44.56737127,126.15,126.07,26.0]
[1744826572360,7.92707094,126.15,126.11,44.56737127]
[1744826572567,7.92707094,126.15,126.12,44.56737127]
[1744826572770,7.92707094,126.15,126.11,44.56737127]
[1744826573288,7.92707094,126.15,126.05,0.14216157]
[1744826573289,18.79181043,126.11,126.04,5.9778]
[1744826573456,44.56737127,126.1,126.05,44.56737127]
[1744826573653,44.56737127,126.11,126.06,44.56737127]
[1744826573961,44.56737127,126.1,126.03,33.93446166]
[1744826574176,44.56737127,126.09,126.0,44.56737127]
[1744826574357,7.93084304,126.09,126.04,44.56737127]
[1744826574556,26.14216157,126.12,126.07,44.56737127]
[1744826574757,33.92920304,126.12,126.01,27.77555536]
[1744826575055,7.92840081,126.13,126.09,44.56737127]
[1744826575253,7.92775177,126.14,126.1,44.56737127]
[1744826575553,52.49318564,126.17,126.12,44.56737127]
[1744826575748,27.73294382,126.21,126.14,44.56737127]
[1744826575982,7.92330243,126.21,126.16,44.56737127]
[1744826576167,7.92274259,126.22,126.17,44.56737127]
[1744826576366,44.56737127,126.2,126.15,52.49441608]
[1744826576763,26.0,126.23,126.15,52.49441608]
[1744826577085,52.48879078,126.24,126.19,44.56737127]
[1744826577255,46.80059419,126.26,126.21,44.56737127]
[1744826577455,91.36796546,126.26,126.22,44.56737127]
[1744826577665,46.80059419,126.26,126.22,44.56737127]
[1744826578050,46.80027965,126.26,126.18,89.50134327]
[1744826578280,46.80027965,126.26,126.22,44.56737127]
[1744826578687,44.56737127,126.23,126.16,26.0]
[1744826578983,44.56737127,126.19,126.15,44.56737127]
[1744826579178,44.56737127,126.18,126.1,7.93021411]
[1744826579390,44.56737127,126.17,126.13,44.56737127]
[1744826579596,44.56737127,126.21,126.16,44.56737127]
[1744826579765,18.79181043,126.22,126.16,26.0]
[1744826579967,44.56737127,126.2,126.12,44.56737127]
[1744826580158,44.56737127,126.21,126.16,44.56737127]
[1744826580357,7.92330243,126.21,126.16,44.56737127]
[1744826580584,64.51409008,126.24,126.2,44.56737127]
[1744826580585,7.92164292,126.24,126.2,44.56737127]
[1744826580775,44.56737127,126.22,126.18,44.56737127]
[1744826581065,52.48901419,126.24,126.19,44.56737127]
[1744826581288,44.56737127,126.22,126.17,44.56737127]
[1744826581590,44.56737127,126.21,126.16,26.0]
[1744826581763,44.56737127,126.17,126.09,5.5986]
[1744826581958,44.56737127,126.15,126.1,44.56737127]
[1744826582295,27.72519171,126.24,126.15,18.64964886]
[1744826582463,66.60973985,126.27,126.2,44.56737127]
[1744826582669,0.14216157,126.26,126.2,44.56737127]
[1744826582958,0.14216157,126.26,126.16,7.92644261]
[1744826582959,44.56737127,126.24,126.16,7.92644261]
[1744826583188,18.79181043,126.26,126.21,44.56737127]
[1744826583362,46.80953749,126.27,126.18,70.56737127]
[1744826583697,44.56737127,126.22,126.17,26.0]
[1744826583989,44.56737127,126.18,126.13,70.56737127]
[1744826584488,18.79181043,126.18,126.13,44.56737127]
[1744826584693,26.0,126.23,126.13,44.56737127]
[1744826584694,38.84,126.25,126.17,44.56737127]
[1744826584854,52.48831493,126.25,126.17,26.0]
[1744826585058,0.03,126.27,126.23,44.56737127]
[1744826585279,44.56737127,126.26,126.21,44.56737127]
[1744826585461,26.0,126.19,126.1,27.75574939]
[1744826585665,18.79181043,126.17,126.1,7.93021411]
[1744826585962,44.56737127,126.13,126.08,58.14618253]
[1744826586173,44.56737127,126.12,126.09,30.0]
[1744826586373,26.71903669,126.15,126.09,44.56737127]
[1744826586587,44.56737127,126.12,126.05,19.83187147]
[1744826586790,18.79181043,126.14,126.05,19.83187147]
[1744826586970,44.56737127,126.1,126.05,44.56737127]
[1744826587163,44.56737127,126.09,126.04,7.9339892]
[1744826587369,26.0,126.13,126.07,44.56737127]
[1744826587574,44.70953284,126.14,126.09,44.56737127]
[1744826587782,44.70953284,126.11,126.06,44.56737127]
[1744826587977,44.56737127,126.1,126.05,44.56737127]
[1744826588182,44.56737127,126.09,126.04,52.50136047]
[1744826588380,53.74490362,126.15,126.06,52.50010171]
[1744826588578,18.64964886,126.14,126.1,44.56737127]
[1744826588779,33.92722626,126.15,126.07,26.0]
[1744826588780,44.56737127,126.13,126.07,26.0]
[1744826588987,44.56737127,126.09,126.04,26.0]
[1744826589199,44.56737127,126.07,126.03,7.93461874]
[1744826589372,0.28432314,126.1,126.02,7.93505994]
[1744826589573,44.56737127,126.08,126.02,7.93505994]
[1744826589802,44.56737127,126.09,126.04,44.56737127]
[1744826590099,44.56737127,126.09,126.02,7.93505994]
[1744826590100,44.56737127,126.08,126.02,7.93505994]
[1744826590271,44.56737127,126.08,126.0,64.40852257]
[1744826590272,18.79181043,126.08,126.0,44.56737127]
[1744826590474,44.56737127,126.05,125.98,7.93776789]
[1744826590801,44.56737127,126.06,126.01,44.56737127]
[1744826591003,44.56737127,126.04,125.98,7.93776789]
[1744826591204,44.56737127,126.04,126.0,44.56737127]
[1744826591404,44.56737127,126.05,126.0,44.56737127]
[1744826591571,71.29085271,126.08,126.03,44.56737127]
[1744826591897,44.56737127,126.07,126.02,44.56737127]
[1744826592404,7.92958528,126.11,126.02,7.93524837]
[1744826592695,44.56737127,126.1,126.05,44.56737127]
[1744826593001,63.21702013,126.1,126.05,44.56737127]
[1744826593205,18.64964886,126.08,126.01,33.93565557]
[1744826593497,63.64350484,126.1,126.05,44.56737127]
[1744826593697,18.64964886,126.13,126.08,44.56737127]
[1744826593998,63.21702013,126.09,126.02,26.0]
[1744826594193,26.0,126.11,126.06,44.56737127]
[1744826594509,71.14655228,126.12,126.05,7.93335977]
[1744826594678,44.56737127,126.09,126.04,33.93385646]
[1744826594870,44.56737127,126.09,126.05,44.56737127]
[1744826595073,7.92769938,126.14,126.06,44.56737127]
[1744826595374,44.56737127,126.1,126.05,44.56737127]
[1744826595689,26.0,126.1,126.04,44.56737127]
[1744826595877,44.56737127,126.09,126.04,44.56737127]
[1744826596075,44.56737127,126.08,126.04,44.56737127]
[1744826596467,44.56737127,126.06,125.97,19.84462319]
[1744826596671,44.56737127,126.05,126.01,44.56737127]
[1744826597102,44.56737127,126.04,125.98,7.93776789]
[1744826597276,44.56737127,126.04,125.99,70.56737127]
[1744826597481,44.56737127,126.05,126.01,44.56737127]
[1744826598002,44.56737127,126.05,126.0,44.56737127]
[1744826598603,44.56737127,126.05,126.0,52.50377541]
[1744826598897,44.56737127,126.04,126.0,44.56737127]
[1744826599103,44.56737127,126.05,126.0,52.50385971]
[1744826599292,44.56737127,126.04,125.99,26.0]
[1744826599494,44.56737127,126.01,125.96,7.93902826]
[1744826599701,44.56737127,125.98,125.93,44.56737127]
[1744826599898,44.56737127,125.97,125.93,44.56737127]
[1744826600084,44.56737127,125.97,125.92,52.50892146]
[1744826600400,0.28432314,125.99,125.92,7.94155019]
[1744826600601,0.14216157,125.99,125.94,44.56737127]
[1744826600770,8.07946957,125.99,125.93,70.56737127]
[1744826601113,0.14216157,126.01,125.92,44.56737127]
[1744826601421,63.21702013,126.02,125.97,44.56737127]
[1744826601577,0.14216157,126.04,125.98,44.56737127]
[1744826601777,292.37238536,126.07,126.01,44.56737127]
[1744826601988,44.56737127,126.04,125.99,44.56737127]
[1744826602380,63.21702013,126.06,125.98,44.56737127]
[1744826602585,26.0,126.05,126.0,44.56737127]
[1744826602914,26.0,126.05,126.01,44.56737127]
[1744826603409,44.56737127,126.03,125.98,44.56737127]
[1744826603707,0.14216157,126.03,125.98,44.56737127]
[1744826604009,0.14216157,126.03,125.97,52.50514544]
[1744826604186,44.56737127,126.02,125.97,52.50514544]
[1744826604389,18.64964886,126.04,125.99,44.56737127]
[1744826604714,19.8290399,126.08,126.03,44.56737127]
[1744826604715,37.0,126.07,126.03,44.56737127]
[1744826605306,37.0,126.07,126.04,44.56737127]
[1744826605789,37.0,126.07,126.03,44.56737127]
[1744826606149,37.0,126.07,126.02,44.56737127]
[1744826606308,81.56737127,126.07,126.03,44.56737127]
[1744826606606,81.56737127,126.07,126.02,52.50261964]
[1744826606810,37.0,126.07,126.02,7.93524837]
[1744826606983,44.56737127,126.06,126.01,78.50296618]
[1744826607321,44.56737127,126.06,126.02,44.56737127]
[1744826607482,44.56737127,126.06,125.94,44.56737127]
[1744826607483,63.21702013,126.03,125.95,7.93965859]
[1744826607689,44.56737127,126.01,125.96,44.56737127]
[1744826607884,44.56737127,126.0,125.96,44.56737127]
[1744826608215,0.14216157,126.09,126.02,26.0]
[1744826608510,66.69038794,126.14,126.04,7.9339892]
[1744826608683,70.56737127,126.12,126.07,44.56737127]
[1744826608879,66.69038794,126.14,126.08,44.56737127]
[1744826608880,7.92832791,126.13,126.08,44.56737127]
[1744826609116,44.56737127,126.12,126.07,44.56737127]
[1744826609293,52.49569918,126.13,126.08,44.56737127]
[1744826609606,43.9877092,126.14,126.11,44.56737127]
[1744826609818,44.56737127,126.12,126.07,26.0]
[1744826610017,44.56737127,126.1,126.05,70.56737127]
[1744826610221,89.80695765,126.14,126.08,44.56737127]
[1744826610515,36.06,126.14,126.12,44.56737127]
[1744826610717,44.56737127,126.15,126.09,33.93084304]
[1744826611096,44.56737127,126.14,126.1,44.56737127]
[1744826611605,7.92581437,126.17,126.11,44.56737127]
[1744826611908,44.56737127,126.14,126.09,70.56737127]
[1744826612111,18.64964886,126.16,126.11,44.56737127]
[1744826612112,44.56737127,126.16,126.11,44.56737127]
[1744826612411,0.03,126.18,126.17,26.0]
[1744826612603,247.55,126.25,126.18,33.92518624]
[1744826612794,0.03,126.25,126.22,44.56737127]
[1744826613113,44.56737127,126.23,126.18,52.49255751]
[1744826613329,18.64964886,126.23,126.16,44.56737127]
[1744826613496,44.56737127,126.21,126.15,33.92665004]
[1744826613692,44.56737127,126.2,126.15,78.49402131]
[1744826614092,44.56737127,126.2,126.15,70.56737127]
[1744826614298,44.56737127,126.18,126.13,31.5547]
[1744826614605,8.06609183,126.2,126.1,7.93021411]
[1744826614916,44.56737127,126.19,126.14,44.56737127]
[1744826615607,44.56737127,126.16,126.12,44.56737127]
[1744826615810,44.56737127,126.14,126.08,5.4274]
[1744826616115,44.56737127,126.09,126.02,7.93524837]
[1744826616308,18.79181043,126.13,126.05,44.56737127]
[1744826616490,52.49737474,126.11,126.05,26.0]
[1744826616696,44.56737127,126.12,126.07,44.56737127]
[1744826616915,52.49519311,126.14,126.09,44.56737127]
[1744826617117,44.56737127,126.12,126.04,18.64964886]
[1744826617297,44.56737127,126.11,126.06,44.56737127]
[1744826617500,44.56737127,126.09,126.02,7.93524144]
[1744826617705,0.42648471,126.13,126.06,44.56737127]
[1744826617923,44.56737127,126.1,126.05,70.56737127]
[1744826618126,44.56737127,126.09,126.04,44.56737127]
[1744826618332,44.56737127,126.06,126.01,5.3466]
[1744826618646,26.0,126.11,126.05,44.56737127]
[1744826618811,26.0,126.11,126.01,5.3466]
[1744826618812,35.12,126.12,126.07,44.56737127]
[1744826619014,44.70953284,126.12,126.07,44.56737127]
[1744826619214,44.56737127,126.1,126.05,44.56737127]
[1744826619423,44.56737127,126.09,126.04,44.56737127]
[1744826619630,44.56737127,126.1,126.05,44.56737127]
[1744826619807,7.92832791,126.13,126.09,44.56737127]
[1744826620002,71.14534804,126.13,126.08,44.56737127]
[1744826620207,7.92832791,126.13,126.1,44.56737127]
[1744826620420,44.56737127,126.11,125.98,11.2723]
[1744826620602,7.92895654,126.12,126.08,44.56737127]
[1744826620934,33.92707094,126.15,126.11,44.56737127]
[1744826621231,7.92707094,126.15,126.11,44.56737127]
[1744826621425,7.9263092,126.17,126.14,44.56737127]
[1744826621633,7.9245582,126.19,126.12,44.56737127]
[1744826621806,44.56737127,126.2,126.15,44.56737127]
[1744826622134,290.44291218,126.22,126.15,26.0]
[1744826622326,87.61028345,126.22,126.17,44.56737127]
[1744826622501,87.61028345,126.22,126.15,26.0]
[1744826622707,0.03,126.25,126.2,44.56737127]
[1744826622921,52.51833013,126.25,126.16,7.92644261]
[1744826623122,0.03,126.25,126.22,44.56737127]
[1744826623325,0.03,126.25,126.24,44.56737127]
[1744826623529,0.03,126.25,126.22,26.0]
[1744826623530,0.03,126.25,126.23,44.56737127]
[1744826623932,0.03,126.25,126.22,70.56737127]
[1744826624130,0.03,126.25,126.22,26.0]
[1744826624432,0.03,126.25,126.19,26.0]
[1744826624433,44.59737127,126.25,126.19,26.0]
[1744826624629,0.03,126.25,126.21,44.56737127]
[1744826625036,0.03,126.25,126.23,44.56737127]
[1744826625226,0.03,126.25,126.22,44.56737127]
[1744826626037,0.03,126.25,126.2,78.49078615]
[1744826626237,0.03,126.25,126.21,44.56737127]
[1744826626437,0.03,126.25,126.22,44.56737127]
[1744826626740,0.03,126.25,126.21,44.56737127]
[1744826627143,0.03,126.25,126.24,70.56737127]
[1744826627438,0.03,126.25,126.22,44.56737127]
[1744826627635,0.03,126.25,126.21,26.0]
[1744826628140,44.59737127,126.25,126.19,7.92430002]
[1744826628342,44.56737127,126.23,126.16,7.92644261]
[1744826628543,44.56737127,126.24,126.19,44.56737127]
[1744826628743,44.56737127,126.24,126.18,33.92467621]
[1744826628949,44.56737127,126.23,126.17,7.92559073]
[1744826629125,44.56737127,126.23,126.18,44.56737127]
[1744826629623,18.67964886,126.25,126.2,44.56737127]
[1744826629830,0.03,126.25,126.24,44.56737127]
[1744826630345,44.59737127,126.25,126.21,44.56737127]
[1744826630532,44.56737127,126.24,126.2,26.0]
[1744826630929,18.79181043,126.23,126.16,7.92644261]
[1744826631146,63.3591817,126.23,126.18,44.56737127]
[1744826631329,44.56737127,126.21,126.16,52.49381388]
[1744826631639,7.92162757,126.24,126.17,44.56737127]
[1744826631842,52.51830686,126.25,126.2,44.56737127]
[1744826632037,0.03,126.25,126.2,44.56737127]
[1744826632238,52.51822468,126.25,126.2,44.56737127]
[1744826632417,0.03,126.25,126.21,26.0]
[1744826632621,0.03,126.25,126.23,44.56737127]
[1744826633034,0.03,126.25,126.22,7.92267469]
[1744826633035,0.03,126.25,126.24,44.56737127]
[1744826634252,0.03,126.25,126.22,7.92267469]
[1744826634423,0.03,126.25,126.22,33.92267469]
[1744826634628,0.03,126.25,126.22,70.56737127]
[1744826635152,0.03,126.25,126.21,44.56737127]
[1744826635330,0.03,126.25,126.22,44.56737127]
[1744826635532,0.03,126.25,126.24,70.56737127]
[1744826635736,0.03,126.25,126.24,26.0]
[1744826636029,0.03,126.25,126.24,115.13474254]
[1744826636236,0.03,126.25,126.24,26.0]
[1744826636630,0.03,126.25,126.24,70.56737127]
[1744826637245,0.03,126.25,126.24,78.48879078]
[1744826638044,1e-08,126.25,126.24,146.87399562]
[1744826638254,0.03,126.27,126.26,0.42648471]
[1744826638445,1e-08,126.27,126.26,63.64350484]
[1744826638655,6.18435536,126.42,126.33,44.64964886]
[1744826638948,6.18435536,126.42,126.37,26.0]
[1744826639248,52.47685923,126.44,126.37,78.48064182]
[1744826639450,52.00685923,126.44,126.37,78.48064182]
[1744826639655,52.00685923,126.44,126.39,44.56737127]
[1744826639848,7.43948796,126.44,126.37,33.91327055]
[1744826640147,44.56737127,126.43,126.38,44.56737127]
[1744826640341,44.56737127,126.41,126.33,19.78927648]
[1744826640532,53.21171193,126.44,126.37,44.56737127]
[1744826640846,33.43948796,126.44,126.39,44.56737127]
[1744826641148,52.78543162,126.49,126.42,44.56737127]
[1744826641331,52.78543162,126.49,126.43,44.56737127]
[1744826641332,52.47375963,126.48,126.43,44.56737127]
[1744826641527,7.90638836,126.48,126.4,26.0]
[1744826641749,72.23973053,126.48,126.4,26.0]
[1744826642047,44.56737127,126.44,126.4,26.0]
[1744826642245,44.56737127,126.41,126.37,26.0]
[1744826642448,0.42648471,126.43,126.33,7.91551937]
[1744826642449,44.56737127,126.39,126.33,7.91551937]
[1744826642752,19.07613357,126.41,126.36,44.56737127]
[1744826642949,44.56737127,126.39,126.35,44.56737127]
[1744826643250,52.48064182,126.37,126.32,44.56737127]
[1744826643447,7.9113924,126.4,126.36,44.56737127]
[1744826643850,26.0,126.44,126.36,44.56737127]
[1744826643851,7.90638836,126.48,126.39,70.56737127]
[1744826644059,63.21702013,126.47,126.42,44.56737127]
[1744826644352,44.56737127,126.46,126.41,44.56737127]
[1744826644534,44.56737127,126.43,126.35,18.64964886]
[1744826644736,44.56737127,126.43,126.38,70.56737127]
[1744826644928,44.56737127,126.45,126.4,44.56737127]
[1744826645129,44.56737127,126.46,126.41,44.56737127]
[1744826645330,44.56737127,126.46,126.38,26.0]
[1744826645331,44.56737127,126.44,126.38,26.0]
[1744826645531,44.56737127,126.44,126.39,44.56737127]
[1744826645742,18.64964886,126.45,126.4,44.56737127]
[1744826645935,18.933972,126.45,126.38,26.0]
[1744826646166,44.56737127,126.43,126.38,70.56737127]
[1744826646331,53.67673571,126.46,126.41,26.0]
[1744826646332,7.90763877,126.46,126.41,26.0]
[1744826646657,7.90763877,126.46,126.43,44.56737127]
[1744826647153,7.90763877,126.46,126.42,44.56737127]
[1744826647471,44.56737127,126.48,126.43,44.56737127]
[1744826647670,85.49323141,126.49,126.44,44.56737127]
[1744826647963,85.49323141,126.49,126.45,44.56737127]
[1744826648169,0.03,126.5,126.45,44.56737127]
[1744826648337,0.03,126.5,126.45,26.0]
[1744826648766,7.93514304,126.5,126.46,44.1211359]
[1744826649062,52.05627894,126.5,126.45,44.1211359]
[1744826649368,44.1211359,126.48,126.43,7.90925319]
[1744826649542,44.1211359,126.47,126.41,7.91076655]
[1744826649737,44.1211359,126.45,126.37,19.78295015]
[1744826649940,70.1211359,126.48,126.41,44.1211359]
[1744826650266,70.1211359,126.48,126.37,19.78295015]
[1744826650267,44.1211359,126.43,126.37,7.91327055]
[1744826650435,26.0,126.45,126.36,7.91382576]
[1744826650760,44.1211359,126.38,126.32,19.79088128]
[1744826651063,0.42648471,126.4,126.34,30.0]
[1744826651253,44.1211359,126.36,126.34,30.0]
[1744826651649,52.03315425,126.39,126.34,74.1211359]
[1744826651858,52.03315425,126.39,126.34,30.0]
[1744826651859,44.1211359,126.38,126.34,30.0]
[1744826652162,44.1211359,126.37,126.34,30.0]
[1744826652353,44.1211359,126.36,126.3,0.063]
[1744826652557,44.1211359,126.36,126.31,44.1211359]
[1744826652760,19.07613357,126.38,126.3,56.063]
[1744826653062,44.1211359,126.36,126.31,44.1211359]
[1744826653442,32.1,126.4,126.32,44.1211359]
[1744826653761,76.2211359,126.4,126.35,44.1211359]
[1744826654163,44.1211359,126.39,126.34,44.1211359]
[1744826654352,44.1211359,126.38,126.33,44.1211359]
[1744826654667,7.91241722,126.39,126.34,44.1211359]
[1744826654867,7.91092498,126.41,126.34,26.0]
[1744826655046,44.1211359,126.44,126.38,44.1211359]
[1744826655244,52.02940003,126.45,126.4,44.1211359]
[1744826655445,44.1211359,126.44,126.39,44.1211359]
[1744826655759,44.1211359,126.41,126.37,26.0]
[1744826655955,27.67892447,126.45,126.39,44.1211359]
[1744826656151,44.1211359,126.43,126.38,44.1211359]
[1744826656458,18.933972,126.44,126.39,44.1211359]
[1744826656643,44.1211359,126.43,126.38,44.1211359]
[1744826656843,44.1211359,126.41,126.33,19.78919027]
[1744826657043,18.933972,126.44,126.37,44.1211359]
[1744826657265,44.1211359,126.43,126.38,44.1211359]
[1744826657571,52.03023091,126.44,126.39,44.1211359]
[1744826657870,44.1211359,126.48,126.4,44.1211359]
[1744826658062,44.1211359,126.45,126.4,44.1211359]
[1744826658247,44.1211359,126.44,126.39,44.1211359]
[1744826658562,26.42648471,126.47,126.38,52.03344711]
[1744826658743,44.1211359,126.45,126.39,44.1211359]
[1744826658939,44.1211359,126.45,126.4,44.1211359]
[1744826659152,44.1211359,126.46,126.41,44.1211359]
[1744826659364,40.0060191,126.49,126.44,44.1211359]
[1744826659565,0.03,126.5,126.44,44.1211359]
[1744826659566,7.93524761,126.5,126.44,44.1211359]
[1744826659862,44.1211359,126.49,126.44,44.1211359]
[1744826660041,44.1211359,126.48,126.42,7.9101408]
[1744826660365,44.1211359,126.47,126.42,52.0312767]
[1744826660562,0.03,126.5,126.45,44.1211359]
[1744826660761,44.1211359,126.47,126.42,71.8066287]
[1744826660968,44.1211359,126.46,126.42,7.9101408]
[1744826661358,44.1211359,126.47,126.42,52.0312767]
[1744826661670,44.1211359,126.47,126.42,7.9101408]
[1744826661861,7.906935,126.48,126.42,7.9101408]
[1744826662062,44.1211359,126.46,126.42,7.9101408]
[1744826662249,7.906935,126.48,126.41,26.0]
[1744826662250,44.1211359,126.45,126.41,26.0]
[1744826662452,44.1211359,126.44,126.41,26.0]
[1744826662653,7.906935,126.48,126.43,44.1211359]
[1744826662858,44.1211359,126.47,126.42,44.1211359]
[1744826663056,7.906935,126.48,126.41,33.91047749]
[1744826663374,7.906935,126.48,126.43,44.1211359]
[1744826663554,44.1211359,126.47,126.42,52.0308429]
[1744826663753,7.906935,126.48,126.42,52.0308429]
[1744826663948,52.0280709,126.48,126.43,44.1211359]
[1744826664149,44.1211359,126.47,126.42,52.0308429]
[1744826664351,44.1211359,126.46,126.42,7.909707]
[1744826664550,52.02835526,126.47,126.42,52.0308429]
[1744826664753,44.1211359,126.45,126.4,4.8591]
[1744826664952,44.1211359,126.44,126.4,12.77037018]
[1744826665154,19.07613357,126.46,126.4,56.89150608]
[1744826665354,7.90721936,126.47,126.43,44.1211359]
[1744826665558,44.1211359,126.46,126.4,12.77037018]
[1744826665773,44.1211359,126.43,126.34,14.9793]
[1744826665981,44.1211359,126.39,126.36,30.0]
[1744826666177,19.07613357,126.41,126.36,30.0]
[1744826666477,26.0,126.44,126.36,44.1211359]
[1744826666670,7.90951514,126.43,126.35,46.35047987]
[1744826666865,7.90951514,126.43,126.38,44.1211359]
[1744826666866,52.03065104,126.43,126.38,44.1211359]
[1744826667179,52.03065104,126.43,126.38,70.1211359]
[1744826667180,44.1211359,126.43,126.38,70.1211359]
[1744826667574,44.1211359,126.41,126.39,26.0]
[1744826667770,19.07613357,126.45,126.39,26.0]
[1744826667986,7.90763877,126.46,126.39,70.1211359]
[1744826668157,44.1211359,126.44,126.39,70.1211359]
[1744826668356,44.1211359,126.42,126.39,26.0]
[1744826668562,44.1211359,126.42,126.38,26.0]
[1744826668869,44.1211359,126.43,126.38,78.03361857]
[1744826669072,44.1211359,126.42,126.38,26.0]
[1744826669376,44.1211359,126.43,126.38,78.03369855]
[1744826669569,44.1211359,126.42,126.38,33.91256265]
[1744826669876,44.1211359,126.41,126.38,33.91256265]
[1744826670075,44.1211359,126.41,126.38,26.0]
[1744826670575,7.90763877,126.46,126.4,44.1211359]
[1744826670760,52.02877467,126.46,126.41,44.1211359]
[1744826670958,44.1211359,126.45,126.4,44.1211359]
[1744826671155,52.02833799,126.47,126.42,44.1211359]
[1744826671572,44.1211359,126.47,126.42,44.1211359]
[1744826671952,44.1211359,126.46,126.39,26.0]
[1744826672274,44.1211359,126.46,126.41,44.1211359]
[1744826672780,52.02825727,126.47,126.42,52.0312767]
[1744826673264,44.1211359,126.45,126.4,44.1211359]
[1744826673694,26.55677023,126.47,126.39,52.03290782]
[1744826673695,44.1211359,126.44,126.39,52.03290782]
[1744826674060,44.1211359,126.42,126.38,78.03358578]
[1744826674371,0.28432314,126.45,126.38,78.03358578]
[1744826674580,44.1211359,126.43,126.38,78.03358578]
[1744826674961,7.90888959,126.44,126.38,78.03358578]
[1744826675463,44.1211359,126.43,126.38,26.0]
[1744826675665,44.1211359,126.41,126.38,33.91252233]
[1744826675861,7.90826413,126.45,126.4,44.1211359]
[1744826676071,44.1211359,126.44,126.39,44.1211359]
[1744826676381,52.02903726,126.46,126.41,44.1211359]
[1744826676587,44.1211359,126.44,126.38,53.69413334]
[1744826676781,7.90790136,126.46,126.4,44.1211359]
[1744826677083,7.90902031,126.44,126.38,53.69413334]
[1744826677267,44.1211359,126.44,126.39,44.1211359]
[1744826677790,26.0,126.48,126.42,44.1211359]
[1744826677985,33.90660928,126.48,126.42,44.1211359]
[1744826678292,44.1211359,126.43,126.38,33.91252233]
[1744826678662,18.933972,126.47,126.41,44.1211359]
[1744826678981,33.90660928,126.48,126.41,44.1211359]
[1744826679181,44.1211359,126.47,126.42,52.0312767]
[1744826679386,44.1211359,126.48,126.43,44.1211359]
[1744826679567,7.90610177,126.49,126.44,44.1211359]
[1744826679773,52.02723767,126.49,126.44,44.1211359]
[1744826680280,0.03,126.5,126.47,44.1211359]
[1744826680467,0.03,126.5,126.47,26.0]
[1744826680866,44.1511359,126.5,126.45,70.1211359]
[1744826681209,44.1211359,126.47,126.42,26.0]
[1744826681390,0.14216157,126.49,126.42,26.0]
[1744826681691,27.84031818,126.5,126.42,70.1211359]
[1744826681692,44.1211359,126.47,126.42,70.1211359]
[1744826682067,44.1211359,126.46,126.42,26.0]
[1744826682267,44.1211359,126.47,126.42,26.0]
[1744826683085,44.1211359,126.47,126.43,33.90951514]
[1744826683288,44.1211359,126.47,126.43,7.90951514]
[1744826683666,7.90608497,126.49,126.44,44.1211359]
[1744826684186,52.02722087,126.49,126.43,7.90951514]
[1744826684493,7.93540459,126.5,126.45,70.1211359]
[1744826684792,44.1211359,126.49,126.45,26.0]
[1744826684970,44.1211359,126.48,126.43,78.03065104]
[1744826685166,52.0281264,126.48,126.43,33.90951514]
[1744826685379,44.1211359,126.48,126.43,78.03065104]
[1744826685572,52.02769498,126.48,126.43,78.03065104]
[1744826686094,52.02769498,126.48,126.43,26.0]
[1744826686095,44.1211359,126.47,126.43,26.0]
[1744826686472,7.90595573,126.49,126.43,78.03059534]
[1744826686686,7.93537595,126.5,126.45,44.1211359]
[1744826686884,0.03,126.5,126.46,44.1211359]
[1744826687084,0.03,126.5,126.49,7.9057633]
[1744826687273,0.03,126.5,126.49,52.0268992]
[1744826687670,0.03,126.5,126.49,96.67654806]
[1744826688496,0.03,126.5,126.49,97.10303277]
[1744826688872,0.03,126.5,126.49,96.9608712]
[1744826689197,3.0127309,126.54,126.53,33.90326404]